[Event "10th Iberoamericano-ch 2024"]
[Site "Linares"]
[Date "2024.09.30"]
[Round "8.32"]
[White "Prado Acebo, Ines"]
[Black "Ticona Rocabado, Licael Roderick"]
[Result "0-1"]
[ECO "C02"]
[WhiteElo "2189"]
[BlackElo "2321"]
[Annotator "RC"]
[PlyCount "56"]
[EventDate "2024.09.25"]
[EventType "swiss"]
[EventCountry "ESP"]
[SourceTitle "playchess.com"]
[Source "ChessBase"]
[SourceQuality "1"]
[TimeControl "5400+30"]

1. e4 {[%emt 0:00:03]} e6 {[%emt 0:09:06]} 2. d4 {[%emt 0:00:08]} d5 {[%emt 0:00:06]} 3. e5 {[%emt 0:00:07]} c5 {[%emt 0:00:04]} 4. c3 {[%emt 0:00:08]} Qb6 {[%emt 0:00:08]} 5. Nf3 {[%emt 0:00:08]} Nc6 {[%emt 0:00:05]} 6. Bd3 {[%emt 0:00:14]} cxd4 {[%emt 0:00:46]} 7. O-O {[%emt 0:00:12]} Bd7 {[%emt 0:00:10]} 8. Re1 {[%emt 0:00:08]} a6 {[%emt 0:01:51]} 9. Nbd2 {[%emt 0:00:28]} dxc3 {[%emt 0:00:30]} 10. bxc3 {[%emt 0:00:10]} Bc5 {[%emt 0:00:15]} 11. Qe2 {[%emt 0:01:48]} Na5 {[%emt 0:00:41]} 12. c4 {[%emt 0:07:20]} dxc4 {[%emt 0:01:43]} 13. Bxc4 {[%emt 0:01:26]} Bc6 {[%emt 0:00:40]} 14. Ng5 {[%emt 0:04:44]} Rd8 {[%emt 0:02:22]} 15. Rb1 {[%emt 0:16:08]} Qc7 {[%emt 0:03:22]} 16. Bd3 {[%emt 0:11:34]} Qd7 {[%emt 0:04:16]} 17. Bc2 {[%emt 0:05:55]} Bb5 {[%emt 0:17:29]} 18. Qf3 {[%emt 0:02:10]} Nc6 {[%emt 0:01:27]} 19. a4 {[%emt 0:20:01]} Nd4 {[%emt 0:01:17]} 20. Qc3 {[%emt 0:02:18]} Nxc2 {[%emt 0:02:37]} 21. Qxc5 {[%emt 0:09:22]} Rc8 {[%emt 0:03:42]} 22. Qb6 {[%emt 0:00:17]} Nxe1 {[%emt 0:03:37]} 23. Nge4 {[%emt 0:01:50]} Qc6 {[%emt 0:08:18]} 24. Qe3 {[%emt 0:04:36]} Bd3 {[%emt 0:12:42]} 25. Rxb7 {[%emt 0:07:32]} Rd8 {[%emt 0:04:46]} 26. Nd6+ {[%emt 0:03:10]} Rxd6 {[%emt 0:00:08]} 27. Rb8+ {[%emt 0:00:09]} Rd8 {[%emt 0:00:06]} 28. Rxd8+ {[%emt 0:01:03]} Kxd8 {[%emt 0:00:06]} 0-1

[Event "10th Iberoamericano-ch 2024"]
[Site "Linares"]
[Date "2024.09.30"]
[Round "8.33"]
[White "Suarez Gomez, Paula"]
[Black "Blanco Acevedo, Cristobal Jose"]
[Result "1/2-1/2"]
[ECO "B33"]
[WhiteElo "2111"]
[BlackElo "2301"]
[Annotator "RC"]
[PlyCount "205"]
[EventDate "2024.09.25"]
[EventType "swiss"]
[EventCountry "ESP"]
[SourceTitle "playchess.com"]
[Source "ChessBase"]
[SourceQuality "1"]
[TimeControl "5400+30"]

1. e4 {[%emt 0:00:02]} c5 {[%emt 0:05:57]} 2. Nf3 {[%emt 0:00:09]} Nc6 {[%emt 0:00:07]} 3. d4 {[%emt 0:00:07]} cxd4 {[%emt 0:00:11]} 4. Nxd4 {[%emt 0:00:07]} Nf6 {[%emt 0:00:12]} 5. Nc3 {[%emt 0:00:07]} e5 {[%emt 0:00:44]} 6. Ndb5 {[%emt 0:00:12]} d6 {[%emt 0:00:05]} 7. Nd5 {[%emt 0:00:28]} Nxd5 {[%emt 0:00:04]} 8. exd5 {[%emt 0:00:10]} Ne7 {[%emt 0:00:02]} 9. c4 {[%emt 0:00:14]} Nf5 {[%emt 0:00:07]} 10. Bd3 {[%emt 0:00:15]} g6 {[%emt 0:00:06]} 11. O-O {[%emt 0:00:25]} Bg7 {[%emt 0:00:06]} 12. Qa4 {[%emt 0:12:11]} O-O {[%emt 0:01:06]} 13. Qa3 {[%emt 0:00:13]} a6 {[%emt 0:05:59]} 14. Bxf5 {[%emt 0:18:26]} axb5 {[%emt 0:00:06]} 15. Qxa8 {[%emt 0:00:20]} gxf5 {[%emt 0:00:05]} 16. Qa7 {[%emt 0:03:04]} f4 {[%emt 0:02:27]} 17. f3 {[%emt 0:02:03]} bxc4 {[%emt 0:02:31]} 18. Bd2 {[%emt 0:05:23]} f5 {[%emt 0:05:48]} 19. Rac1 {[%emt 0:07:37]} b5 {[%emt 0:00:09]} 20. a4 {[%emt 0:04:50]} Rf7 {[%emt 0:00:30]} 21. Qa5 {[%emt 0:06:34]} Qxa5 {[%emt 0:00:45]} 22. Bxa5 {[%emt 0:00:10]} Ra7 {[%emt 0:01:29]} 23. Bb4 {[%emt 0:02:26]} bxa4 {[%emt 0:05:31]} 24. Rfe1 {[%emt 0:04:10]} Ba6 {[%emt 0:00:19]} 25. Bxd6 {[%emt 0:05:35]} e4 {[%emt 0:00:12]} 26. Rc2 {[%emt 0:03:11]} Rd7 {[%emt 0:01:02]} 27. Bxf4 {[%emt 0:00:29]} Rxd5 {[%emt 0:00:22]} 28. fxe4 {[%emt 0:01:48]} fxe4 {[%emt 0:01:12]} 29. Rxe4 {[%emt 0:07:54]} c3 {[%emt 0:00:37]} 30. Rxa4 {[%emt 0:01:16]} Bd4+ {[%emt 0:01:02]} 31. Rxd4 {[%emt 0:02:10]} Rxd4 {[%emt 0:00:01]} 32. Bc1 {[%emt 0:01:24]} Rd1+ {[%emt 0:00:31]} 33. Kf2 {[%emt 0:01:46]} cxb2 {[%emt 0:00:05]} 34. Bxb2 {[%emt 0:00:05]} Rd7 {[%emt 0:00:32]} 35. g4 {[%emt 0:00:42]} Kf7 {[%emt 0:00:04]} 36. Kg3 {[%emt 0:00:51]} Bd3 {[%emt 0:00:26]} 37. Rf2+ {[%emt 0:00:46]} Kg8 {[%emt 0:00:05]} 38. Bc1 {[%emt 0:01:38]} Rf7 {[%emt 0:00:28]} 39. Rd2 {[%emt 0:00:48]} Rd7 {[%emt 0:00:03]} 40. Rf2 {[%emt 0:01:23]} Kg7 {[%emt 0:00:32]} 41. Bb2+ {[%emt 0:00:27]} Kg8 {[%emt 0:00:05]} 42. h4 {[%emt 0:00:06]} Rf7 {[%emt 0:00:14]} 43. Rd2 {[%emt 0:00:22]} Rd7 {[%emt 0:00:15]} 44. h5 {[%emt 0:00:56]} Rd5 {[%emt 0:00:36]} 45. Rf2 {[%emt 0:00:43]} Rd7 {[%emt 0:00:22]} 46. Kh4 {[%emt 0:01:40]} Rf7 {[%emt 0:00:06]} 47. Rd2 {[%emt 0:00:46]} Rf3 {[%emt 0:00:05]} 48. Kg5 {[%emt 0:00:54]} Re3 {[%emt 0:00:20]} 49. Bd4 {[%emt 0:01:16]} Rf3 {[%emt 0:00:12]} 50. Bc5 {[%emt 0:01:16]} Kf7 {[%emt 0:00:07]} 51. Rb2 {[%emt 0:00:46]} Ke6 {[%emt 0:01:03]} 52. Bd4 {[%emt 0:00:24]} Rg3 {[%emt 0:00:57]} 53. Kf4 {[%emt 0:01:09]} Rh3 {[%emt 0:00:03]} 54. Rf2 {[%emt 0:00:45]} Rh1 {[%emt 0:00:14]} 55. Kg5 {[%emt 0:00:22]} Rf1 {[%emt 0:00:08]} 56. Ra2 {[%emt 0:01:00]} Rb1 {[%emt 0:00:41]} 57. Kh6 {[%emt 0:00:44]} Rb4 {[%emt 0:00:11]} 58. Be3 {[%emt 0:01:14]} Rxg4 {[%emt 0:00:10]} 59. Rf2 {[%emt 0:00:52]} Rg3 {[%emt 0:02:58]} 60. Bg5 {[%emt 0:00:20]} Rh3 {[%emt 0:00:06]} 61. Rf6+ {[%emt 0:00:54]} Ke5 {[%emt 0:00:15]} 62. Rb6 {[%emt 0:01:05]} Kf5 {[%emt 0:00:47]} 63. Be7 {[%emt 0:00:24]} Ke5 {[%emt 0:01:13]} 64. Bd8 {[%emt 0:00:33]} Be4 {[%emt 0:01:26]} 65. Kg5 {[%emt 0:00:55]} Bf3 {[%emt 0:01:52]} 66. Bc7+ {[%emt 0:00:07]} Ke4 {[%emt 0:00:26]} 67. Rb4+ {[%emt 0:00:46]} Kd5 {[%emt 0:00:10]} 68. Kf6 {[%emt 0:01:08]} Bxh5 {[%emt 0:00:25]} 69. Bf4 {[%emt 0:00:41]} Be2 {[%emt 0:00:21]} 70. Bg5 {[%emt 0:00:40]} h5 {[%emt 0:00:17]} 71. Bh4 {[%emt 0:00:22]} Rf3+ {[%emt 0:00:45]} 72. Kg5 {[%emt 0:00:15]} Rf8 {[%emt 0:00:08]} 73. Bg3 {[%emt 0:00:52]} Rg8+ {[%emt 0:00:28]} 74. Kh4 {[%emt 0:00:08]} Ra8 {[%emt 0:00:29]} 75. Rf4 {[%emt 0:00:31]} Ra2 {[%emt 0:00:44]} 76. Kg5 {[%emt 0:00:18]} Ra1 {[%emt 0:00:16]} 77. Kh4 {[%emt 0:00:15]} Rh1+ {[%emt 0:00:11]} 78. Kg5 {[%emt 0:00:08]} Rh3 {[%emt 0:00:06]} 79. Bh4 {[%emt 0:00:27]} Bg4 {[%emt 0:00:16]} 80. Rf8 {[%emt 0:00:50]} Rh1 {[%emt 0:00:22]} 81. Bg3 {[%emt 0:00:25]} Rg1 {[%emt 0:00:09]} 82. Kh4 {[%emt 0:00:18]} Ke4 {[%emt 0:00:09]} 83. Rf4+ {[%emt 0:00:18]} Kd3 {[%emt 0:00:06]} 84. Rf8 {[%emt 0:00:29]} Rh1+ {[%emt 0:00:18]} 85. Kg5 {[%emt 0:00:03]} Ke2 {[%emt 0:00:16]} 86. Rf2+ {[%emt 0:00:18]} Ke3 {[%emt 0:00:10]} 87. Rf8 {[%emt 0:00:30]} Rb1 {[%emt 0:00:13]} 88. Kh4 {[%emt 0:00:15]} Rb4 {[%emt 0:00:11]} 89. Rf2 {[%emt 0:02:02]} Bf3+ {[%emt 0:01:51]} 90. Kh3 {[%emt 0:00:08]} Rb1 {[%emt 0:00:41]} 91. Ra2 {[%emt 0:01:01]} Be2 {[%emt 0:00:08]} 92. Ra3+ {[%emt 0:00:52]} Bd3 {[%emt 0:00:07]} 93. Kh4 {[%emt 0:00:25]} Rh1+ {[%emt 0:00:23]} 94. Kg5 {[%emt 0:00:07]} Kd2 {[%emt 0:00:41]} 95. Ra2+ {[%emt 0:00:29]} Ke3 {[%emt 0:00:37]} 96. Rh2 {[%emt 0:00:30]} Rg1 {[%emt 0:00:39]} 97. Kh4 {[%emt 0:00:18]} Ke4 {[%emt 0:00:39]} 98. Rf2 {[%emt 0:00:26]} Ke3 {[%emt 0:00:13]} 99. Rh2 {[%emt 0:00:15]} Ke4 {[%emt 0:00:06]} 100. Rf2 {[%emt 0:00:05]} Kd5 {[%emt 0:01:32]} 101. Bh2 {[%emt 0:00:22]} Rf1 {[%emt 0:00:13]} 102. Rxf1 {[%emt 0:00:07]} Bxf1 {[%emt 0:00:02]} 103. Kxh5 {[%emt 0:00:08]} 1/2-1/2

[Event "10th Iberoamericano-ch 2024"]
[Site "Linares"]
[Date "2024.09.30"]
[Round "8.34"]
[White "Jodorcovsky Werjivker, Paulo"]
[Black "Leyva, Hector"]
[Result "0-1"]
[ECO "A41"]
[WhiteElo "2092"]
[BlackElo "2296"]
[Annotator "RC"]
[PlyCount "121"]
[EventDate "2024.09.25"]
[EventType "swiss"]
[EventCountry "ESP"]
[SourceTitle "playchess.com"]
[Source "ChessBase"]
[SourceQuality "1"]
[TimeControl "5400+30"]

1. d4 {[%emt 0:00:05]} d6 {[%emt 0:00:11]} 2. Nf3 {[%emt 0:00:23]} g6 {[%emt 0:00:11]} 3. g3 {[%emt 0:00:52]} Bg7 {[%emt 0:00:23]} 4. Bg2 {[%emt 0:00:05]} Nd7 {[%emt 0:02:29]} 5. O-O {[%emt 0:00:20]} e5 {[%emt 0:00:49]} 6. dxe5 {[%emt 0:02:12]} Nxe5 {[%emt 0:00:32]} 7. Nxe5 {[%emt 0:01:33]} Bxe5 {[%emt 0:02:01]} 8. c4 {[%emt 0:07:20]} Ne7 {[%emt 0:00:17]} 9. Nc3 {[%emt 0:00:25]} Bg7 {[%emt 0:05:34]} 10. Bg5 {[%emt 0:08:46]} h6 {[%emt 0:00:58]} 11. Bd2 {[%emt 0:00:33]} O-O {[%emt 0:01:59]} 12. Qc1 {[%emt 0:00:55]} Kh7 {[%emt 0:00:57]} 13. Nd5 {[%emt 0:06:15]} c6 {[%emt 0:21:05]} 14. Nxe7 {[%emt 0:04:58]} Qxe7 {[%emt 0:00:01]} 15. Re1 {[%emt 0:17:42]} Be6 {[%emt 0:08:15]} 16. Bc3 {[%emt 0:02:14]} Be5 {[%emt 0:02:46]} 17. f4 {[%emt 0:07:37]} Bxc3 {[%emt 0:01:58]} 18. Qxc3 {[%emt 0:00:05]} d5 {[%emt 0:00:29]} 19. cxd5 {[%emt 0:00:38]} cxd5 {[%emt 0:04:15]} 20. Qd4 {[%emt 0:01:28]} Rfc8 {[%emt 0:03:36]} 21. Rac1 {[%emt 0:05:03]} Rc4 {[%emt 0:01:03]} 22. Qf2 {[%emt 0:05:15]} Rac8 {[%emt 0:10:00]} 23. Rxc4 {[%emt 0:17:43]} Rxc4 {[%emt 0:04:24]} 24. b3 {[%emt 0:02:59]} Rc5 {[%emt 0:00:44]} 25. Qd4 {[%emt 0:01:06]} b6 {[%emt 0:02:17]} 26. Bf3 {[%emt 0:02:04]} Rc2 {[%emt 0:01:23]} 27. a4 {[%emt 0:00:44]} Qc5 {[%emt 0:01:38]} 28. Rd1 {[%emt 0:01:09]} Rc1 {[%emt 0:10:16]} 29. Kg2 {[%emt 0:02:08]} Rxd1 {[%emt 0:00:28]} 30. Qxd1 {[%emt 0:00:03]} d4 {[%emt 0:00:12]} 31. Be4 {[%emt 0:00:47]} Qc3 {[%emt 0:01:47]} 32. Bc2 {[%emt 0:01:14]} Qe3 {[%emt 0:02:54]} 33. Bd3 {[%emt 0:00:47]} Bd5+ {[%emt 0:01:58]} 34. Kf1 {[%emt 0:00:18]} h5 {[%emt 0:00:49]} 35. f5 {[%emt 0:01:17]} h4 {[%emt 0:03:43]} 36. fxg6+ {[%emt 0:00:07]} Kg7 {[%emt 0:01:01]} 37. Bc4 {[%emt 0:00:37]} Be4 {[%emt 0:00:47]} 38. gxh4 {[%emt 0:00:31]} Qh3+ {[%emt 0:02:58]} 39. Ke1 {[%emt 0:00:05]} Qxh4+ {[%emt 0:00:08]} 40. Kd2 {[%emt 0:00:21]} Qf4+ {[%emt 0:00:17]} 41. Ke1 {[%emt 0:00:04]} Qh4+ {[%emt 0:02:13]} 42. Kd2 {[%emt 0:00:12]} Qg5+ {[%emt 0:00:49]} 43. Ke1 {[%emt 0:00:04]} Qg1+ {[%emt 0:00:20]} 44. Kd2 {[%emt 0:00:07]} Qe3+ {[%emt 0:00:28]} 45. Ke1 {[%emt 0:00:04]} Bxg6 {[%emt 0:00:30]} 46. Bd3 {[%emt 0:01:14]} Bh5 {[%emt 0:00:29]} 47. Qc2 {[%emt 0:01:08]} Qg1+ {[%emt 0:00:21]} 48. Kd2 {[%emt 0:00:04]} Qg5+ {[%emt 0:00:44]} 49. Kd1 {[%emt 0:00:35]} Qg1+ {[%emt 0:00:12]} 50. Kd2 {[%emt 0:00:03]} Qxh2 {[%emt 0:00:09]} 51. Qc6 {[%emt 0:01:03]} Qf4+ {[%emt 0:00:42]} 52. Ke1 {[%emt 0:01:24]} Qh4+ {[%emt 0:00:41]} 53. Kd1 {[%emt 0:00:48]} Qg5 {[%emt 0:00:34]} 54. Qd7 {[%emt 0:01:10]} Qe3 {[%emt 0:00:30]} 55. Qb5 Bg6 56. Bxg6 fxg6 57. Qd7+ Kh6 58. Qf7 d3 59. Qf8+ Kh5 60. Qh8+ Kg4 61. Qc8+ 0-1

[Event "10th Iberoamericano-ch 2024"]
[Site "Linares"]
[Date "2024.09.30"]
[Round "8.35"]
[White "Buiza Prieto, Eihartze"]
[Black "Cabezas Solano, David Alejandro"]
[Result "1-0"]
[ECO "B54"]
[WhiteElo "2056"]
[BlackElo "2248"]
[Annotator "RC"]
[PlyCount "119"]
[EventDate "2024.09.25"]
[EventType "swiss"]
[EventCountry "ESP"]
[SourceTitle "playchess.com"]
[Source "ChessBase"]
[SourceQuality "1"]
[TimeControl "5400+30"]

1. e4 {[%emt 0:00:03]} c5 {[%emt 0:00:08]} 2. Nf3 {[%emt 0:00:10]} d6 {[%emt 0:00:05]} 3. d4 {[%emt 0:00:37]} cxd4 {[%emt 0:00:31]} 4. Nxd4 {[%emt 0:00:07]} Nf6 {[%emt 0:00:04]} 5. f3 {[%emt 0:00:07]} e5 {[%emt 0:00:07]} 6. Nb3 {[%emt 0:00:07]} d5 {[%emt 0:00:24]} 7. Bg5 {[%emt 0:00:18]} d4 {[%emt 0:00:07]} 8. c3 {[%emt 0:00:44]} Nc6 {[%emt 0:00:15]} 9. cxd4 {[%emt 0:00:22]} exd4 {[%emt 0:15:59]} 10. Bb5 {[%emt 0:08:52]} h6 {[%emt 0:14:22]} 11. Bxf6 {[%emt 0:11:22]} Qxf6 {[%emt 0:00:03]} 12. Qxd4 {[%emt 0:00:57]} Qg5 {[%emt 0:08:05]} 13. Bxc6+ {[%emt 0:01:05]} bxc6 {[%emt 0:00:03]} 14. O-O {[%emt 0:01:04]} Be7 {[%emt 0:08:15]} 15. f4 {[%emt 0:07:36]} Qg6 {[%emt 0:03:13]} 16. Nc3 {[%emt 0:01:35]} O-O {[%emt 0:00:23]} 17. Qe3 {[%emt 0:07:30]} Re8 {[%emt 0:07:03]} 18. Nc5 {[%emt 0:13:02]} Rb8 {[%emt 0:05:40]} 19. b3 {[%emt 0:01:09]} Qd6 {[%emt 0:04:00]} 20. N3a4 {[%emt 0:04:28]} Rb5 {[%emt 0:01:24]} 21. Rfd1 {[%emt 0:02:01]} Qc7 {[%emt 0:00:41]} 22. Rac1 {[%emt 0:00:19]} g5 {[%emt 0:10:00]} 23. g3 {[%emt 0:03:39]} Kh7 {[%emt 0:02:55]} 24. Kh1 {[%emt 0:02:10]} Bg4 {[%emt 0:03:47]} 25. Rd2 {[%emt 0:07:23]} Rd8 {[%emt 0:02:01]} 26. Rxd8 {[%emt 0:02:21]} Qxd8 {[%emt 0:00:02]} 27. Nd3 {[%emt 0:03:03]} Bf6 {[%emt 0:02:50]} 28. e5 {[%emt 0:06:48]} Bg7 {[%emt 0:08:58]} 29. Nc3 {[%emt 0:01:59]} Rb7 {[%emt 0:01:46]} 30. Nf2 {[%emt 0:03:05]} Bf5 {[%emt 0:00:30]} 31. Rd1 {[%emt 0:01:29]} Rd7 {[%emt 0:00:04]} 32. Rxd7 {[%emt 0:00:29]} Qxd7 {[%emt 0:00:01]} 33. Nfe4 {[%emt 0:01:55]} gxf4 {[%emt 0:00:41]} 34. gxf4 {[%emt 0:00:08]} Kh8 {[%emt 0:01:39]} 35. Nd6 {[%emt 0:01:33]} Bg6 {[%emt 0:00:43]} 36. Nce4 {[%emt 0:01:02]} Qg4 {[%emt 0:00:31]} 37. Nf2 {[%emt 0:04:04]} Qd7 {[%emt 0:00:02]} 38. Nfe4 {[%emt 0:00:06]} Qg4 {[%emt 0:00:03]} 39. Nf2 {[%emt 0:00:15]} Qd7 {[%emt 0:00:06]} 40. Qh3 {[%emt 0:00:25]} f5 {[%emt 0:02:01]} 41. Qd3 {[%emt 0:01:02]} h5 {[%emt 0:00:50]} 42. Qg3 {[%emt 0:02:31]} Qe6 {[%emt 0:00:13]} 43. Qf3 {[%emt 0:00:40]} Qd7 {[%emt 0:00:47]} 44. Nd3 {[%emt 0:00:08]} Bf8 {[%emt 0:00:35]} 45. Nc5 {[%emt 0:00:29]} Qd8 {[%emt 0:00:16]} 46. Ne6 {[%emt 0:00:21]} Qe7 {[%emt 0:00:16]} 47. Nxf8 {[%emt 0:00:09]} Qxf8 {[%emt 0:00:01]} 48. Qxc6 {[%emt 0:00:10]} Kh7 {[%emt 0:00:55]} 49. Qc8 {[%emt 0:00:29]} Qh6 {[%emt 0:00:09]} 50. Qb7+ {[%emt 0:00:34]} Kg8 {[%emt 0:00:07]} 51. Qb8+ {[%emt 0:00:06]} Kh7 {[%emt 0:00:08]} 52. Qxa7+ {[%emt 0:00:05]} Kg8 {[%emt 0:00:09]} 53. Qa8+ {[%emt 0:00:07]} Kg7 {[%emt 0:00:08]} 54. Qb7+ {[%emt 0:00:10]} Kg8 {[%emt 0:00:09]} 55. Qc8+ {[%emt 0:00:11]} Kg7 {[%emt 0:00:48]} 56. Qd7+ {[%emt 0:00:28]} Kg8 {[%emt 0:00:15]} 57. Qd8+ {[%emt 0:00:57]} Kg7 {[%emt 0:00:16]} 58. Qg5 {[%emt 0:00:39]} Qh7 {[%emt 0:00:34]} 59. Qe7+ {[%emt 0:00:25]} Kh6 {[%emt 0:00:08]} 60. Qxh7+ {[%emt 0:00:07]} 1-0

[Event "10th Iberoamericano-ch 2024"]
[Site "Linares"]
[Date "2024.09.30"]
[Round "8.36"]
[White "Dias, Ivo Rodrigues"]
[Black "Rodriguez Redondo, Adhara"]
[Result "1-0"]
[ECO "C77"]
[WhiteElo "2077"]
[BlackElo "2184"]
[Annotator "RC"]
[PlyCount "101"]
[EventDate "2024.09.25"]
[EventType "swiss"]
[EventCountry "ESP"]
[SourceTitle "playchess.com"]
[Source "ChessBase"]
[SourceQuality "1"]
[TimeControl "5400+30"]

1. e4 {[%emt 0:00:03]} e5 {[%emt 0:00:05]} 2. Nf3 {[%emt 0:00:09]} Nc6 {[%emt 0:00:03]} 3. Bb5 {[%emt 0:00:12]} a6 {[%emt 0:00:06]} 4. Ba4 {[%emt 0:00:07]} Nf6 {[%emt 0:00:07]} 5. d3 {[%emt 0:00:10]} b5 {[%emt 0:01:42]} 6. Bb3 {[%emt 0:00:09]} Bc5 {[%emt 0:00:35]} 7. Nc3 {[%emt 0:00:38]} d6 {[%emt 0:03:45]} 8. Nd5 {[%emt 0:00:17]} h6 {[%emt 0:06:39]} 9. c3 {[%emt 0:03:14]} O-O {[%emt 0:04:52]} 10. Nxf6+ {[%emt 0:01:25]} Qxf6 {[%emt 0:00:09]} 11. Bd5 {[%emt 0:00:17]} Bd7 {[%emt 0:02:33]} 12. Rg1 {[%emt 0:00:08]} Qg6 {[%emt 0:22:07]} 13. g4 {[%emt 0:28:18]} Kh8 {[%emt 0:08:03]} 14. Nh4 {[%emt 0:04:17]} Qf6 {[%emt 0:05:21]} 15. Nf5 {[%emt 0:00:53]} Bxf5 {[%emt 0:05:17]} 16. gxf5 {[%emt 0:01:48]} Qh4 {[%emt 0:05:50]} 17. Rg2 {[%emt 0:02:36]} Ne7 {[%emt 0:03:03]} 18. Bxa8 {[%emt 0:00:21]} Rxa8 {[%emt 0:00:09]} 19. Qf3 {[%emt 0:01:53]} d5 {[%emt 0:01:32]} 20. Bd2 {[%emt 0:17:32]} dxe4 {[%emt 0:02:50]} 21. Qxe4 {[%emt 0:00:55]} Qxe4+ {[%emt 0:00:07]} 22. dxe4 {[%emt 0:00:04]} f6 {[%emt 0:02:00]} 23. O-O-O {[%emt 0:00:25]} Nc6 {[%emt 0:00:24]} 24. Rdg1 {[%emt 0:03:11]} Bf8 {[%emt 0:00:24]} 25. Bxh6 {[%emt 0:05:53]} gxh6 {[%emt 0:00:24]} 26. Rg8+ {[%emt 0:00:02]} Kh7 {[%emt 0:00:07]} 27. R1g7+ {[%emt 0:00:04]} Bxg7 {[%emt 0:00:05]} 28. Rxa8 {[%emt 0:00:04]} Na5 {[%emt 0:07:17]} 29. Rxa6 {[%emt 0:00:30]} Nc4 {[%emt 0:00:30]} 30. Kc2 {[%emt 0:00:30]} Bf8 {[%emt 0:00:30]} 31. Rxf6 {[%emt 0:00:30]} Bd6 {[%emt 0:00:30]} 32. b3 {[%emt 0:00:30]} Nb6 {[%emt 0:00:30]} 33. Kb2 {[%emt 0:00:30]} Kg7 {[%emt 0:00:30]} 34. Rg6+ {[%emt 0:00:30]} Kh7 {[%emt 0:00:38]} 35. Rg1 {[%emt 0:06:53]} Nd7 {[%emt 0:00:34]} 36. f3 {[%emt 0:00:25]} Nc5 {[%emt 0:00:59]} 37. Kc2 {[%emt 0:00:07]} Be7 {[%emt 0:00:42]} 38. Rd1 {[%emt 0:06:34]} Kg7 {[%emt 0:01:26]} 39. b4 {[%emt 0:01:47]} Na6 {[%emt 0:01:47]} 40. Rd5 {[%emt 0:00:18]} Kf6 {[%emt 0:04:30]} 41. Rxb5 {[%emt 0:00:20]} Bd6 {[%emt 0:00:09]} 42. Kb3 Kg5 43. c4 {[%emt 0:02:05]} Kf4 {[%emt 0:01:14]} 44. c5 {[%emt 0:04:06]} Be7 {[%emt 0:00:37]} 45. Kc4 {[%emt 0:00:15]} Kxf3 {[%emt 0:00:58]} 46. Kd5 Kf4 {[%emt 0:00:43]} 47. Rb7 {[%emt 0:01:19]} h5 {[%emt 0:01:21]} 48. a3 {[%emt 0:01:16]} h4 {[%emt 0:00:56]} 49. Ra7 {[%emt 0:01:04]} Nb8 {[%emt 0:01:44]} 50. Rxc7 {[%emt 0:00:21]} Bg5 {[%emt 0:00:10]} 51. b5 {[%emt 0:00:35]} 1-0

[Event "10th Iberoamericano-ch 2024"]
[Site "Linares"]
[Date "2024.09.30"]
[Round "8.37"]
[White "Portero Rubio, Martin"]
[Black "Rodriguez Lopez, Rafael"]
[Result "0-1"]
[ECO "C92"]
[WhiteElo "2043"]
[BlackElo "2162"]
[Annotator "RC"]
[PlyCount "104"]
[EventDate "2024.09.25"]
[EventType "swiss"]
[EventCountry "ESP"]
[SourceTitle "playchess.com"]
[Source "ChessBase"]
[SourceQuality "1"]
[TimeControl "5400+30"]

1. e4 {[%emt 0:00:05]} e5 {[%emt 0:00:05]} 2. Nf3 {[%emt 0:00:07]} Nc6 {[%emt 0:00:05]} 3. Bb5 {[%emt 0:00:17]} a6 {[%emt 0:00:06]} 4. Ba4 {[%emt 0:00:11]} Nf6 {[%emt 0:00:05]} 5. O-O {[%emt 0:00:19]} Be7 {[%emt 0:00:05]} 6. Re1 {[%emt 0:00:23]} b5 {[%emt 0:00:14]} 7. Bb3 {[%emt 0:00:05]} d6 {[%emt 0:00:05]} 8. c3 {[%emt 0:00:32]} O-O {[%emt 0:00:07]} 9. h3 {[%emt 0:00:23]} Bb7 {[%emt 0:00:16]} 10. d4 {[%emt 0:01:30]} Re8 {[%emt 0:00:12]} 11. Ng5 {[%emt 0:02:03]} Rf8 {[%emt 0:00:04]} 12. Nf3 {[%emt 0:00:18]} h6 {[%emt 0:00:13]} 13. Nbd2 {[%emt 0:01:19]} Re8 {[%emt 0:00:10]} 14. Nf1 {[%emt 0:00:39]} Bf8 {[%emt 0:00:05]} 15. Ng3 {[%emt 0:00:37]} Na5 {[%emt 0:00:05]} 16. Bc2 {[%emt 0:02:34]} Nc4 {[%emt 0:00:06]} 17. b3 {[%emt 0:05:36]} Nb6 {[%emt 0:00:05]} 18. a4 {[%emt 0:01:58]} bxa4 {[%emt 0:00:05]} 19. bxa4 {[%emt 0:00:46]} a5 {[%emt 0:00:06]} 20. Rb1 {[%emt 0:04:02]} Bc6 {[%emt 0:01:41]} 21. d5 {[%emt 0:08:37]} Bd7 {[%emt 0:00:45]} 22. Bb3 {[%emt 0:06:05]} Bc8 {[%emt 0:06:08]} 23. Be3 {[%emt 0:05:40]} Ba6 {[%emt 0:00:27]} 24. Nd2 {[%emt 0:02:50]} Rb8 {[%emt 0:03:38]} 25. Bxb6 {[%emt 0:09:53]} cxb6 {[%emt 0:01:11]} 26. Bc4 {[%emt 0:05:02]} Bxc4 {[%emt 0:01:05]} 27. Nxc4 {[%emt 0:00:01]} Qc7 {[%emt 0:00:09]} 28. Na3 {[%emt 0:01:20]} g6 {[%emt 0:05:36]} 29. Nb5 {[%emt 0:04:09]} Qb7 {[%emt 0:00:21]} 30. Nf1 {[%emt 0:02:35]} Nd7 {[%emt 0:00:23]} 31. Ne3 {[%emt 0:00:29]} Nc5 {[%emt 0:00:14]} 32. Nc4 {[%emt 0:00:37]} Qd7 {[%emt 0:00:29]} 33. Qc2 {[%emt 0:04:21]} Rec8 {[%emt 0:00:23]} 34. Rf1 {[%emt 0:01:45]} f5 {[%emt 0:05:24]} 35. f3 {[%emt 0:03:16]} f4 {[%emt 0:00:26]} 36. Kh2 {[%emt 0:01:13]} Be7 {[%emt 0:01:02]} 37. Rg1 {[%emt 0:00:57]} Rf8 {[%emt 0:01:02]} 38. g3 {[%emt 0:06:34]} fxg3+ {[%emt 0:00:38]} 39. Rxg3 {[%emt 0:00:03]} Bg5 {[%emt 0:00:20]} 40. Kh1 {[%emt 0:02:51]} Rf6 {[%emt 0:01:27]} 41. Rbg1 {[%emt 0:01:41]} Kh7 {[%emt 0:00:12]} 42. Qg2 {[%emt 0:02:13]} Nd3 {[%emt 0:00:33]} 43. h4 {[%emt 0:00:54]} Rf4 {[%emt 0:01:39]} 44. Rh3 {[%emt 0:00:44]} Nf2+ {[%emt 0:01:26]} 45. Kh2 {[%emt 0:00:24]} Nxh3 {[%emt 0:00:18]} 46. hxg5 {[%emt 0:00:55]} Nxg1 {[%emt 0:00:22]} 47. Kxg1 {[%emt 0:00:20]} Rbf8 {[%emt 0:00:50]} 48. Nd2 {[%emt 0:00:47]} Qd8 {[%emt 0:02:17]} 49. gxh6 {[%emt 0:00:29]} g5 {[%emt 0:00:27]} 50. Qh3 {[%emt 0:01:16]} g4 {[%emt 0:00:18]} 51. Qh5 {[%emt 0:00:55]} gxf3 {[%emt 0:00:35]} 52. Kf2 {[%emt 0:00:20]} Rh4 {[%emt 0:00:28]} 0-1